{"text_format":"1","workbook":"xlsx","n_sheets":3,"sheets":["Formato","Instructivo de Diligenciamiento","Listas"],"not_rendered":{"charts":0,"images":3,"macros":1,"external_links":0,"defined_names":3,"comments":0,"pivot_tables":0},"unopened":[],"bounds":{"document_bytes":16777216,"sheet_cells":100000,"rows_first":2000,"rows_last":500,"rows_between":2000,"halvings":0,"cell_chars":16384,"cell_head_chars":4096},"cells_cut":0,"cells_raw":0,"read":"whole","date_system":"1900"}

{"sheet":"Formato","index":0,"n_rows":98,"n_cols":17,"rows_kept":98,"cut":false,"hidden":false,"merged":[[83,2,83,3],[83,8,83,9],[83,10,83,11],[83,16,83,17],[84,2,84,3],[84,8,84,9],[84,10,84,11],[84,16,84,17],[66,2,66,3],[66,8,66,9],[66,10,66,11],[66,16,66,17],[64,2,64,3],[64,8,64,9],[64,10,64,11],[64,16,64,17],[65,2,65,3],[65,8,65,9],[65,10,65,11],[65,16,65,17],[62,2,62,3],[62,8,62,9],[62,10,62,11],[62,16,62,17],[63,2,63,3],[63,8,63,9],[63,10,63,11],[63,16,63,17],[60,2,60,3],[60,8,60,9],[60,10,60,11],[60,16,60,17],[61,2,61,3],[61,8,61,9],[61,10,61,11],[61,16,61,17],[58,2,58,3],[58,8,58,9],[58,10,58,11],[58,16,58,17],[59,2,59,3],[59,8,59,9],[59,10,59,11],[59,16,59,17],[56,2,56,3],[56,8,56,9],[56,10,56,11],[56,16,56,17],[57,2,57,3],[57,8,57,9],[57,10,57,11],[57,16,57,17],[55,2,55,3],[55,8,55,9],[55,10,55,11],[55,16,55,17],[52,2,52,3],[52,8,52,9],[52,10,52,11],[52,16,52,17],[53,2,53,3],[53,8,53,9],[53,10,53,11],[53,16,53,17],[50,2,50,3],[50,8,50,9],[50,10,50,11],[50,16,50,17],[51,10,51,11],[51,16,51,17],[54,2,54,3],[54,8,54,9],[54,10,54,11],[54,16,54,17],[44,10,44,11],[44,16,44,17],[45,2,45,3],[45,8,45,9],[45,10,45,11],[45,16,45,17],[49,8,49,9],[49,10,49,11],[49,16,49,17],[97,13,98,14],[17,1,17,13],[95,4,95,5],[91,10,92,12],[93,10,94,12],[95,10,96,12],[97,10,98,12],[91,13,92,14],[93,13,94,14],[95,13,96,14],[39,2,39,3],[39,8,39,9],[29,11,29,13],[95,1,95,3],[37,1,37,9],[37,10,37,17],[35,0,35,17],[92,6,92,8],[94,6,94,8],[37,0,38,0],[38,8,38,9],[38,2,38,3],[44,2,44,3],[44,8,44,9],[68,10,68,11],[68,16,68,17],[38,16,38,17],[40,2,40,3],[40,8,40,9],[40,10,40,11],[40,16,40,17],[38,10,38,11],[39,10,39,11],[46,2,46,3],[46,8,46,9],[48,2,48,3],[48,8,48,9],[51,2,51,3],[51,8,51,9],[49,2,49,3],[48,10,48,11],[48,16,48,17],[46,10,46,11],[46,16,46,17],[47,2,47,3],[47,8,47,9],[47,10,47,11],[47,16,47,17],[29,6,29,8],[23,4,23,8],[97,0,98,0],[97,1,98,2],[39,16,39,17],[95,6,95,8],[94,1,94,3],[89,1,89,3],[92,1,92,3],[41,16,41,17],[42,2,42,3],[42,8,42,9],[42,10,42,11],[42,16,42,17],[43,2,43,3],[43,8,43,9],[43,10,43,11],[43,16,43,17],[67,2,67,3],[67,8,67,9],[67,10,67,11],[67,16,67,17],[68,2,68,3],[68,8,68,9],[1,1,1,13],[7,1,7,2],[11,1,11,2],[23,9,23,13],[25,1,25,2],[25,4,25,5],[25,6,25,8],[25,9,25,10],[25,11,25,13],[11,3,11,9],[9,10,9,11],[9,12,9,13],[2,1,2,13],[13,1,13,13],[15,1,15,2],[4,1,5,3],[4,10,5,11],[4,7,5,9],[4,4,5,5],[15,3,15,7],[41,2,41,3],[41,8,41,9],[41,10,41,11],[31,11,31,13],[27,9,27,10],[21,1,21,13],[7,3,7,9],[9,1,9,2],[9,3,9,7],[7,12,7,13],[23,1,23,2],[19,1,19,13],[27,1,27,2],[27,4,27,5],[27,6,27,8],[27,11,27,13],[29,1,29,2],[29,4,29,5],[29,9,29,10],[31,1,31,2],[31,4,31,5],[31,9,31,10],[31,6,31,8],[69,10,69,11],[69,16,69,17],[70,2,70,3],[70,8,70,9],[70,10,70,11],[70,16,70,17],[71,2,71,3],[71,8,71,9],[71,10,71,11],[71,16,71,17],[69,2,69,3],[69,8,69,9],[72,10,72,11],[72,16,72,17],[73,2,73,3],[73,8,73,9],[73,10,73,11],[73,16,73,17],[74,2,74,3],[74,8,74,9],[74,10,74,11],[74,16,74,17],[72,2,72,3],[72,8,72,9],[75,10,75,11],[75,16,75,17],[76,2,76,3],[76,8,76,9],[76,10,76,11],[76,16,76,17],[77,2,77,3],[77,8,77,9],[77,10,77,11],[77,16,77,17],[75,2,75,3],[75,8,75,9],[81,10,81,11],[81,16,81,17],[82,2,82,3],[82,8,82,9],[82,10,82,11],[82,16,82,17],[78,10,78,11],[78,16,78,17],[79,2,79,3],[79,8,79,9],[79,10,79,11],[79,16,79,17],[80,2,80,3],[80,8,80,9],[80,10,80,11],[80,16,80,17],[78,2,78,3],[78,8,78,9],[81,2,81,3],[81,8,81,9]]}
[]
[null,"FORMATO PARA MODIFICACIÓN DE ÓRDENES DE COMPRA"]
[null,"Tienda Virtual del Estado Colombiano"]
[]
[null,"Número de Orden de Compra a modificar:",null,null,10896,null,null,"Número de modificación de la Orden de Compra:",null,null,1]
[]
[]
[null,"Entidad Compradora:",null,"ESTABLECIMIENTO CARCELARIO DE BOGOTA D. C.",null,null,null,null,null,null,null,"NIT:","830032396-1"]
[]
[null,"Nombre del solicitante:",null,"PABLO ENRIQUE PAEZ MARIN",null,null,null,null,null,null,"Teléfono de contacto:",null,2628722]
[]
[null,"Proveedor :",null,"PANAMERICANA LIBRERÍA Y PAPELERIA S.A."]
[]
[null,"Tipo "]
[]
[null,"Tipo",null,"Modificación de la Orden de Compra"]
[]
[null,"Justificación de la modificación o de las acciones a realizar"]
[]
[null,"La adquisición se encuentra excluida del Impuesto sobre las Ventas IVA, de acuerdo con lo normado en el Art. 130 de la Ley 633 de 2000. Se solicita disminuir el valor de la O. C. 10896 para que se refleje el valor real que es de $5.600.000=.  Lo anterior considerando que los precios de la TVEC tienen IVA incluido. Se modifican las cantidades de los ítems 14, 22 y 44, y se elimina el item 15 para optimizar el uso de los recursos por parte de la Entidad. A la fecha NO SE HA RECIBIDO ninguno de los elementos."]
[]
[null,"Modificación información general"]
[]
[null,"Nombre del campo",null,"¿Requiere modificación Si/No?","Datos actuales",null,null,null,null,"Nuevos datos"]
[]
[null,"Actualizar supervisor",null,"NO","Nombre del supervisor actual",null,null,null,null,"Nombre nuevo supervisor"]
[]
[null,"Fecha de vencimiento",null,"NO","Fecha vencimiento actual",null,null,null,null,"Nueva fecha de vencimiento"]
[]
[null,"Dirección y/o teléfono",null,"NO","Dirección / teléfono actual",null,null,null,null,"Nueva dirección / teléfono"]
[]
[null,"Gravámenes adicionales",null,"NO","Gravamen(es) actual",null,null,null,null,"Nuevo(s) gravamen(es)"]
[]
[]
[]
["Modificación de artículos y servicios"]
[]
["Tipo de modificación","Información actual",null,null,null,null,null,null,null,null,"Nueva información"]
[null,"Número de la línea según O.C.","Nombre del artículo",null,"Cantidad","Unidad de medida","Precio unitario","Total","Información presupuestal",null,"Nombre del artículo",null,"Cantidad","Unidad de medida","Precio unitario","Total","Información presupuestal"]
["Modificación de artículo o servicio",1,"CARPETA PRESENTACION CARTA BLANCO PLASTIFICADA Cod: 8011827",null,160,"UNIDAD",870,{"$f":"E40*G40","v":139200},"U.E. 12-08-00-114 CDP 12916",null,{"$f":"+C40","v":"CARPETA PRESENTACION CARTA BLANCO PLASTIFICADA Cod: 8011827"},null,160,"UNIDAD",{"$f":"+G40/1.16","v":750},{"$f":"M40*O40","v":120000},"U.E. 12-08-00-114 CDP 12916"]
["Modificación de artículo o servicio",2,"LEGAJADOR AZ OFICIO PLASTIFICADO PANAMER Cod: 8143959",null,6,"UNIDAD",3915,23490,"U.E. 12-08-00-114 CDP 12916",null,{"$f":"+C41","v":"LEGAJADOR AZ OFICIO PLASTIFICADO PANAMER Cod: 8143959"},null,{"$f":"+E41","v":6},"UNIDAD",3375.0000000000005,20250.000000000004,"U.E. 12-08-00-114 CDP 12916"]
["Modificación de artículo o servicio",3,"BOLIGRAFO NEGRO BIC CRISTAL 111111002 Cod: 8490678",null,240,"UNIDAD",377,{"$f":"E42*G42","v":90480},"U.E. 12-08-00-114 CDP 12916",null,{"$f":"C42","v":"BOLIGRAFO NEGRO BIC CRISTAL 111111002 Cod: 8490678"},null,240,"UNIDAD",325,{"$f":"M42*O42","v":78000},"U.E. 12-08-00-114 CDP 12916"]
["Modificación de artículo o servicio",4,"BOLIGRAFO ROJO BIC CRISTAL UNIDAD Cod: 8110967",null,120,"UNIDAD",377,45240,"U.E. 12-08-00-114 CDP 12916",null,"BOLIGRAFO ROJO BIC CRISTAL UNIDAD Cod: 8110967",null,120,"UNIDAD",325,39000,"U.E. 12-08-00-114 CDP 12916"]
["Modificación de artículo o servicio",5,"BORRADOR PARA TABLERO EN FELPA MADERA Cod: 8490753",null,8,"UNIDAD",1218,9744,"U.E. 12-08-00-114 CDP 12916",null,"BORRADOR PARA TABLERO EN FELPA MADERA Cod: 8490753",null,8,"UNIDAD",1050,8400,"U.E. 12-08-00-114 CDP 12916"]
["Modificación de artículo o servicio",6,"CINTA POLIPROPILENO 48X100 COLBON Cod: 8490751",null,10,"UNIDAD",3277,32770,"U.E. 12-08-00-114 CDP 12916",null,"CINTA POLIPROPILENO 48X100 COLBON Cod: 8490751",null,10,"UNIDAD",2825,28250,"U.E. 12-08-00-114 CDP 12916"]
["Modificación de artículo o servicio",7,"CINTA ENMASCARAR 12MM X 40MT COLBON Cod: 8490738",null,10,"UNIDAD",1682,16820,"U.E. 12-08-00-114 CDP 12916",null,"CINTA ENMASCARAR 12MM X 40MT COLBON Cod: 8490738",null,10,"UNIDAD",1450,14500,"U.E. 12-08-00-114 CDP 12916"]
["Modificación de artículo o servicio",8,"CINTA POLIPROPILENO 12X40 COLBON Cod: 8490747",null,40,"UNIDAD",638,25520,"U.E. 12-08-00-114 CDP 12916",null,"CINTA POLIPROPILENO 12X40 COLBON Cod: 8490747",null,40,"UNIDAD",550,22000,"U.E. 12-08-00-114 CDP 12916"]
["Modificación de artículo o servicio",10,"CORRECTOR BOLIGRAFO DE BOLSILLO 8 ML Cod: 8490776",null,4,"UNIDAD",1160,4640,"U.E. 12-08-00-114 CDP 12916",null,"CORRECTOR BOLIGRAFO DE BOLSILLO 8 ML Cod: 8490776",null,4,"UNIDAD",1000.0000000000001,4000.0000000000005,"U.E. 12-08-00-114 CDP 12916"]
["Modificación de artículo o servicio",11,"CD REGRABABLE 700MB 4X 80MIN X25 IMATION Cod: 8101577",null,2,"UNIDAD",42862,85724,"U.E. 12-08-00-114 CDP 12916",null,"CD REGRABABLE 700MB 4X 80MIN X25 IMATION Cod: 8101577",null,2,"UNIDAD",36950,73900,"U.E. 12-08-00-114 CDP 12916"]
["Modificación de artículo o servicio",12,"GANCHO LEGAJADOR PLASTICO PAQX20 BEBA Cod: 8490746",null,30,"UNIDAD",4176,125280,"U.E. 12-08-00-114 CDP 12916",null,"GANCHO LEGAJADOR PLASTICO PAQX20 BEBA Cod: 8490746",null,30,"UNIDAD",3600.0000000000005,108000.00000000001,"U.E. 12-08-00-114 CDP 12916"]
["Modificación de artículo o servicio",13,"GRAPA 26/6 X5000 COBRE LISA Cod: 8001503",null,15,"UNIDAD",1914,28710,"U.E. 12-08-00-114 CDP 12916",null,"GRAPA 26/6 X5000 COBRE LISA Cod: 8001503",null,15,"UNIDAD",1650.0000000000002,24750.000000000004,"U.E. 12-08-00-114 CDP 12916"]
["Eliminar artículo o servicio",15,"MARCADOR PERMANENTE ALTO RENDIMIENTO BLISTER X 8 UNIDADES COLORES SURTIDOS COD: 8045467",null,30,"UNIDAD",13746,{"$f":"E52*G52","v":412380},"U.E. 12-08-00-114 CDP 12916",null,"No aplica",null,"No aplica","No aplica","No aplica",0,"No aplica"]
["Modificación de artículo o servicio",16,"PEGANTE BARRA 40 GRS. KORES STICK Cod: 8490822",null,60,"UNIDAD",3335,{"$f":"E53*G53","v":200100},"U.E. 12-08-00-114 CDP 12916",null,"PEGANTE BARRA 40 GRS. KORES STICK Cod: 8490822",null,60,"UNIDAD",2875,{"$f":"M53*O53","v":172500},"U.E. 12-08-00-114 CDP 12916"]
["Modificación de artículo o servicio",17,"PERFORADORA 1040/1032 RANK 18 HJS. Cod: 8001563",null,4,"UNIDAD",12122,48488,"U.E. 12-08-00-114 CDP 12916",null,"PERFORADORA 1040/1032 RANK 18 HJS. Cod: 8001563",null,4,"UNIDAD",10450,41800,"U.E. 12-08-00-114 CDP 12916"]
["Modificación de artículo o servicio",18,"REGLA PLANA ACRILICA 30CM RAPID Cod: 8123282",null,40,"UNIDAD",464,18560,"U.E. 12-08-00-114 CDP 12916",null,"REGLA PLANA ACRILICA 30CM RAPID Cod: 8123282",null,40,"UNIDAD",400,16000,"U.E. 12-08-00-114 CDP 12916"]
["Modificación de artículo o servicio",19,"RESALTADOR AMARILLO SPEKTRA ERGONOMICO Cod: 8022486",null,30,"UNIDAD",841,25230,"U.E. 12-08-00-114 CDP 12916",null,"RESALTADOR AMARILLO SPEKTRA ERGONOMICO Cod: 8022486",null,30,"UNIDAD",725,21750,"U.E. 12-08-00-114 CDP 12916"]
["Modificación de artículo o servicio",20,"RESALTADOR NARANJA ERGONOMICO SPEKTRA Cod: 8490874",null,30,"UNIDAD",841,25230,"U.E. 12-08-00-114 CDP 12916",null,"RESALTADOR NARANJA ERGONOMICO SPEKTRA Cod: 8490874",null,30,"UNIDAD",725,21750,"U.E. 12-08-00-114 CDP 12916"]
["Modificación de artículo o servicio",21,"RESALTADOR VERDE SPEKTRA ERGONOMICO Cod: 8022487",null,30,"UNIDAD",841,25230,"U.E. 12-08-00-114 CDP 12916",null,"RESALTADOR VERDE SPEKTRA ERGONOMICO Cod: 8022487",null,30,"UNIDAD",725,21750,"U.E. 12-08-00-114 CDP 12916"]
["Modificación de artículo o servicio",22,"RESALTADOR ROSADO ERGONOMICO SPEKTRA Cod: 8490875",null,30,"UNIDAD",841,25230,"U.E. 12-08-00-114 CDP 12916",null,"RESALTADOR ROSADO ERGONOMICO SPEKTRA Cod: 8490875",null,31,"UNIDAD",725,22475,"U.E. 12-08-00-114 CDP 12916"]
["Modificación de artículo o servicio",23,"SACAGANCHOS 1030 RANK Cod: 8001523",null,10,"UNIDAD",5800,58000,"U.E. 12-08-00-114 CDP 12916",null,"SACAGANCHOS 1030 RANK Cod: 8001523",null,10,"UNIDAD",5000,50000,"U.E. 12-08-00-114 CDP 12916"]
["Modificación de artículo o servicio",24,"GUIA SEPARADORA 105 X5 PLASTICO Cod: 8046502",null,50,"UNIDAD",1102,55100,"U.E. 12-08-00-114 CDP 12916",null,"GUIA SEPARADORA 105 X5 PLASTICO Cod: 8046502",null,50,"UNIDAD",950.00000000000011,47500.000000000007,"U.E. 12-08-00-114 CDP 12916"]
["Modificación de artículo o servicio",25,"TABLERO ACRILICO 080X120 DOBLE C/SOPORTE Cod: 8004497",null,1,"UNIDAD",165358,165358,"U.E. 12-08-00-114 CDP 12916",null,"TABLERO ACRILICO 080X120 DOBLE C/SOPORTE Cod: 8004497",null,1,"UNIDAD",142550,142550,"U.E. 12-08-00-114 CDP 12916"]
["Modificación de artículo o servicio",26,"CARTELERA CORCHO 60 X 45 PARA COLGAR Cod: 8490756",null,1,"UNIDAD",34220,34220,"U.E. 12-08-00-114 CDP 12916",null,"CARTELERA CORCHO 60 X 45 PARA COLGAR Cod: 8490756",null,1,"UNIDAD",29500.000000000004,29500.000000000004,"U.E. 12-08-00-114 CDP 12916"]
["Modificación de artículo o servicio",27,"TIJERA ESCOLAR PUNTA ROMA MAPED 12CM Cod: 8490893",null,15,"UNIDAD",1189,17835,"U.E. 12-08-00-114 CDP 12916",null,"TIJERA ESCOLAR PUNTA ROMA MAPED 12CM Cod: 8490893",null,15,"UNIDAD",1025,15375,"U.E. 12-08-00-114 CDP 12916"]
["Modificación de artículo o servicio",28,"MEMORIA USB METALICA KINGSTON 16 GB Cod: 8345713",null,2,"UNIDAD",19633,39266,"U.E. 12-08-00-114 CDP 12916",null,"MEMORIA USB METALICA KINGSTON 16 GB Cod: 8345713",null,2,"UNIDAD",16925,33850,"U.E. 12-08-00-114 CDP 12916"]
["Modificación de artículo o servicio",29,"BLOCK BOND CARTA ESCOLAR/HAPPY 80 HJS. Cod: 8019950",null,100,"UNIDAD",2059,{"$f":"E66*G66","v":205900},"U.E. 12-08-00-114 CDP 12916",null,{"$f":"C66","v":"BLOCK BOND CARTA ESCOLAR/HAPPY 80 HJS. Cod: 8019950"},null,100,"UNIDAD",1775.0000000000002,{"$f":"M66*O66","v":177500.00000000003},"U.E. 12-08-00-114 CDP 12916"]
["Modificación de artículo o servicio",30,"CARTULINA BRISTOL CARTA X10 SURTIDA Cod: 8490766",null,60,"UNIDAD",696,41760,"U.E. 12-08-00-114 CDP 12916",null,"CARTULINA BRISTOL CARTA X10 SURTIDA Cod: 8490766",null,60,"UNIDAD",600,36000,"U.E. 12-08-00-114 CDP 12916"]
["Modificación de artículo o servicio",31,"CARTULINA BRISTOL 160 GR BLANCA 70X100 Cod: 8490693",null,80,"UNIDAD",551,44080,"U.E. 12-08-00-114 CDP 12916",null,"CARTULINA BRISTOL 160 GR BLANCA 70X100 Cod: 8490693",null,80,"UNIDAD",475.00000000000006,38000.000000000007,"U.E. 12-08-00-114 CDP 12916"]
["Modificación de artículo o servicio",32,"CARTULINA BRISTOL AMARILLA 70 X 100 CM 1 Cod: 8007934",null,10,"UNIDAD",551,5510,"U.E. 12-08-00-114 CDP 12916",null,"CARTULINA BRISTOL AMARILLA 70 X 100 CM 1 Cod: 8007934",null,10,"UNIDAD",475.00000000000006,4750.0000000000009,"U.E. 12-08-00-114 CDP 12916"]
["Modificación de artículo o servicio",33,"CARTULINA BRISTOL AZUL 70X100CM 140G APR Cod: 8007935",null,10,"UNIDAD",551,5510,"U.E. 12-08-00-114 CDP 12916",null,"CARTULINA BRISTOL AZUL 70X100CM 140G APR Cod: 8007935",null,10,"UNIDAD",475.00000000000006,4750.0000000000009,"U.E. 12-08-00-114 CDP 12916"]
["Modificación de artículo o servicio",34,"CARTULINA BRISTOL VERDE 70X100CM 140G AP Cod: 8007938",null,10,"UNIDAD",551,5510,"U.E. 12-08-00-114 CDP 12916",null,"CARTULINA BRISTOL VERDE 70X100CM 140G AP Cod: 8007938",null,10,"UNIDAD",475.00000000000006,4750.0000000000009,"U.E. 12-08-00-114 CDP 12916"]
["Modificación de artículo o servicio",35,"FORMA CONTINUA 9-1MC X 6000 1 PARTE Cod: 8001738",null,6,"UNIDAD",63597,381582,"U.E. 12-08-00-114 CDP 12916",null,"FORMA CONTINUA 9-1MC X 6000 1 PARTE Cod: 8001738",null,6,"UNIDAD",54825.000000000007,328950.00000000006,"U.E. 12-08-00-114 CDP 12916"]
["Modificación de artículo o servicio",36,"FORMA CONTINUA 9-3C X 1000 3 PARTES BLAN Cod: 8001750",null,2,"UNIDAD",121220,242440,"U.E. 12-08-00-114 CDP 12916",null,"FORMA CONTINUA 9-3C X 1000 3 PARTES BLAN Cod: 8001750",null,2,"UNIDAD",104500,209000,"U.E. 12-08-00-114 CDP 12916"]
["Modificación de artículo o servicio",37,"FORMA CONTINUA 9-2N X 1500 2 PARTES BLAN Cod: 8001749",null,12,"UNIDAD",113622,1363464,"U.E. 12-08-00-114 CDP 12916",null,"FORMA CONTINUA 9-2N X 1500 2 PARTES BLAN Cod: 8001749",null,12,"UNIDAD",97950,1175400,"U.E. 12-08-00-114 CDP 12916"]
["Modificación de artículo o servicio",38,"LIBRO ACTAS 200 FOLIOS ECON. OFICIO Cod: 8009983",null,4,"UNIDAD",9454,37816,"U.E. 12-08-00-114 CDP 12916",null,"LIBRO ACTAS 200 FOLIOS ECON. OFICIO Cod: 8009983",null,4,"UNIDAD",8150.0000000000009,32600.000000000004,"U.E. 12-08-00-114 CDP 12916"]
["Modificación de artículo o servicio",39,"PAPEL FOTOCOPIA CARTA EARTH PACK NATURAL RESMA Cod: 8429411",null,90,"UNIDAD",9222,829980,"U.E. 12-08-00-114 CDP 12916",null,"PAPEL FOTOCOPIA CARTA EARTH PACK NATURAL RESMA Cod: 8429411",null,90,"UNIDAD",7950.0000000000009,715500.00000000012,"U.E. 12-08-00-114 CDP 12916"]
["Modificación de artículo o servicio",40,"PAPEL FOTOCOPIA OFICIO 75G COPYPAC 500 H Cod: 8183130",null,20,"UNIDAD",11368,227360,"U.E. 12-08-00-114 CDP 12916",null,"PAPEL FOTOCOPIA OFICIO 75G COPYPAC 500 H Cod: 8183130",null,20,"UNIDAD",9800,196000,"U.E. 12-08-00-114 CDP 12916"]
["Modificación de artículo o servicio",41,"PAPEL KRAFT 24\"(61CM X 240MTS APROX)60GR Cod: 8490734",null,4,"UNIDAD",43181,172724,"U.E. 12-08-00-114 CDP 12916",null,"PAPEL KRAFT 24\"(61CM X 240MTS APROX)60GR Cod: 8490734",null,4,"UNIDAD",37225,148900,"U.E. 12-08-00-114 CDP 12916"]
["Modificación de artículo o servicio",42,"PAPEL KIMBERLY 90GR CARTA RESMA BLANCO INTENSO Cod: 8490815",null,6,"UNIDAD",68440,410640,"U.E. 12-08-00-114 CDP 12916",null,"PAPEL KIMBERLY 90GR CARTA RESMA BLANCO INTENSO Cod: 8490815",null,6,"UNIDAD",59000.000000000007,354000.00000000006,"U.E. 12-08-00-114 CDP 12916"]
["Modificación de artículo o servicio",43,"CONTACT ORIGINAL TRANSPARENTE ROLLO X 20 Cod: 8490789",null,3,"UNIDAD",61712,185136,"U.E. 12-08-00-114 CDP 12916",null,"CONTACT ORIGINAL TRANSPARENTE ROLLO X 20 Cod: 8490789",null,3,"UNIDAD",53200.000000000007,159600.00000000003,"U.E. 12-08-00-114 CDP 12916"]
["Modificación de artículo o servicio",44,"SOBRE MANILA CARTA 22.5X29 ECOLOGICO SIN Cod: 8024146",null,300,"UNIDAD",116,34800,"U.E. 12-08-00-114 CDP 12916",null,"SOBRE MANILA CARTA 22.5X29 ECOLOGICO SIN Cod: 8024146",null,302,"UNIDAD",100,30200,"U.E. 12-08-00-114 CDP 12916"]
["Modificación de artículo o servicio",45,"SOBRE MANILA OFICIO 25X35 ECOLOGICO SIN Cod: 8024207",null,300,"UNIDAD",116,34800,"U.E. 12-08-00-114 CDP 12916",null,"SOBRE MANILA OFICIO 25X35 ECOLOGICO SIN Cod: 8024207",null,300,"UNIDAD",100,30000,"U.E. 12-08-00-114 CDP 12916"]
["Modificación de artículo o servicio",46,"BANDERITAS ROJO POST-IT Cod: 8010659",null,10,"UNIDAD",10759,107590,"U.E. 12-08-00-114 CDP 12916",null,"BANDERITAS ROJO POST-IT Cod: 8010659",null,10,"UNIDAD",9275,92750,"U.E. 12-08-00-114 CDP 12916"]
["Modificación de artículo o servicio",14,"LAPIZ N. 2 BEROL UNIDAD COD: 8490799",null,4800,"UNIDAD",150,{"$f":"E84*G84","v":720000},"U.E. 12-08-00-114 CDP 12916",null,{"$f":"C84","v":"LAPIZ N. 2 BEROL UNIDAD COD: 8490799"},null,2770,"UNIDAD",150,{"$f":"M84*O84","v":415500},"U.E. 12-08-00-114 CDP 12916"]
["Modificación de artículo o servicio",9,"COLORES MAGICOLOR X 12 BICOLOR NORMAL AC COD: 8002456",null,20,"UNIDAD",13400,{"$f":"E85*G85","v":268000},"U.E. 12-08-00-114 CDP 12916",null,{"$f":"C85","v":"COLORES MAGICOLOR X 12 BICOLOR NORMAL AC COD: 8002456"},null,20,"UNIDAD",13400,{"$f":"M85*O85","v":268000},"U.E. 12-08-00-114 CDP 12916"]
[]
[null,null,null,null,null,null,"TOTAL",{"$f":"SUM(H40:H85)","v":7102447},null,null,null,null,null,null,"TOTAL",{"$f":"SUM(P40:P85)","v":5600000}]
[]
[]
[]
[]
[null,null,null,null,null,null,null,null,null,null,"Valor total del IVA en la Orden de Compra:",null,null,0]
[null,"Firma ordenador del gasto",null,null,null,null,"Firma de Proveedor"]
[null,null,null,null,null,null,null,null,null,null,"Valor total del AIU en la Orden de Compra:",null,null,0]
["Nombre:","CESAR AUGUSTO CEBALLOS GIRALDO",null,null,null,"Nombre:"]
["Documento de Identidad:",11433481,null,null,"Documento de Identidad:",null,null,null,null,null,"Valor total gravámenes adicionales en la Orden de Compra:",null,null,0]
[]
["Fecha Elaboracion:","2016-10-05",null,null,null,null,null,null,null,null,"Valor total de la Orden de Compra:",null,null,5600000]

{"sheet":"Instructivo de Diligenciamiento","index":1,"n_rows":7,"n_cols":2,"rows_kept":7,"cut":false,"hidden":false,"merged":[[6,1,77,10]]}
[]
[]
[]
[]
[]
[]
[null,"Instrucciones de diligenciamiento:\n\nColombia Compra Eficiente ha diseñado este formato para que las Entidades Compradoras puedan realizar aclaraciones, modificaciones,  cancelaciones o liquidaciones  de las Órdenes de Compra que estén en ejecución y vigentes. Para ello debe indicar:\n \n1. Datos generales: Datos básicos como número de la Orden de Compra que requiere cambiar, número consecutivo de solicitud tenga en cuenta que la primera solicitud corresponderá a la número “1”, nombre de la Entidad Compradora, nombre de la persona que solicita las acciones, NIT de la Entidad Compradora y el nombre del Proveedor que ejecuta la Orden de Compra.\n\n2. Tipo: Las Entidades pueden solicitar cuatro tipos de acciones respecto de las Órdenes de Compra:\n\n(i) Aclaraciones: Son las indicaciones de cambio de información que no afectan el plazo, el valor o las condiciones contractuales de las Órdenes de Compra como: redacción en las condiciones de entrega, errores de digitación  o rectificación de la fecha de vencimiento. Estas aclaraciones no requieren de la aceptación del Proveedor. Sin embargo una vez realizada la aclaración en la Orden de Compra, la Entidad Compradora debe notificarle al Proveedor el cambio. \n\n(ii) Modificaciones: Son indicaciones de cambio en aumento o disminución de valor o plazo,  aumento o disminución de los bienes o servicios solicitados, cambios en las condiciones de ejecución o datos que afecten la ejecución de la Orden de Compra. Solo en los casos de cambio de supervisor y datos de notificación como dirección o teléfono se puede omitir la firma del Proveedor. Sin embargo una vez realizada la modificación, la Entidad Compradora debe notificarle al Proveedor el cambio.\n\n(iii) Cancelación: Es la manifestación de la Entidad de no ejecutar la totalidad de la Orden de Compra la cual también debe ser aceptada por el Proveedor.\n\n(iv) Liquidación: Es el ajuste formal y definitivo de las obligaciones derivadas de la Orden de Compra para establecer las acreencias pendientes a favor o en contra de cada parte de la Orden de Compra, así como para aclarar la ejecución de la misma. Se efectúa, cuando aplique, dentro de los términos establecidos en cada Acuerdo Marco de Precios. Se requiere la solicitud por parte de la Entidad Compradora firmada por el Ordenador del Gasto y el representante legal del Proveedor, así como el informe del supervisor de la Orden de Compra. \n\n3. Justificación: Las razones de la realización del cambio o la cancelación de la Orden de Compra.\n\n4. Especificar las modificaciones solicitadas a la información general de la Orden de Compra o la modificación detallada de los bienes y servicios así:\n\n(i) Modificación de información general: Modificaciones a: (a) nombre del supervisor; (b) fecha de vencimiento de la Orden de Compra; (c) dirección y/o teléfono de la Entidad Compradora; o (d) Gravámenes adicionales (estampillas), en todos los campos debe diligenciar la información actual  en la Orden de Compra y los nueva información.\n\n(ii) Modificación de los artículos y/o servicios: \n\n(a) Modificaciones a los artículos o servicios: Adicionar o disminuir en cantidades un producto que fue adquirido en la Orden de Compra inicial. La Entidad debe identificar en los campos de “información actual”: (i) el número de la línea del artículo que lo puede consultar en la Orden de Compra (ii) el artículo adquirido inicialmente; (iii) las unidades de medida; (iv) las cantidades adquiridas; (v) los precios de la compra; y (vi) la información presupuestal. Para modificar o agregar nuevos artículos la Entidad Compradora debe identificar en el campo “nueva información”: (i) la cantidad final requerida; (ii) unidad de medida; (iii) precio unitario acordado previamente con el Proveedor el cual debe respetar lo dispuesto en el contrato correspondiente (precio techo, precio piso, etc.) y (iv) la información presupuestal que respalda el cambio o la inclusión.\n\n(b) Agregar nuevos artículos o servicios: Ingresar nuevos artículos que no se tenían contemplados en la Orden de Compra inicial. La Entidad Compradora debe previamente solicitarle al Proveedor el precio del artículo, el cual debe respetar lo dispuesto en el contrato correspondiente (precio techo, precio piso, etc.) y la Entidad Compradora lo debe indicar en el formato en el campo “nueva información”.\n\n(c) Eliminar artículos o servicios: Descartar artículos que la Entidad Compradora determine que no va a requerir durante la ejecución de la Orden de Compra. Para eliminar artículos la Entidad debe identificar en los campos de “información actual”: (i) el número de la línea del artículo que lo puede consultar en la Orden de Compra (ii) el artículo adquirido inicialmente; (iii) las unidades de medida; (iv) las cantidades adquiridas; (v) los precios de la compra; y (vi) la información presupuestal.\n\nEn esta sección la Entidad Compradora puede agregar tantas filas como artículos requiera modificar haciendo clic en el botón de Agregar registro o Eliminar registro.\n\n5. Consolidado de valores: Indicar en el recuadro el valor total del IVA, AUI, gravámenes adicionales y total de la Orden de Compra, estos campos serán los valores finales que quedarán en la Orden de Compra después de la modificación, tenga en cuenta que el campo de IVA no aplica para los AMP de papelería, vehículos y SOAT y que el campo de AIU solo aplica para aseo y cafetería.\n\n6. Firmas del documento: El ordenador del gasto de la Entidad Compradora debe firmar el documento y enviarlo al Proveedor para que lo acepte y firme, en caso de que así se requiera. El documento firmado debe ser enviado a través del aplicativo dispuesto por   Colombia Compra Eficiente para realizar las acciones solicitadas.\n\n7. Fecha de elaboración del documento: Corresponde a la fecha en la que la Entidad Compradora y el Proveedor llegaron a un acuerdo para realizar las acciones y se suscribe el documento, recuerde que para poder realizar modificaciones en las Órdenes de Compra las mismas se deben acordar dentro de la vigencia de la Orden de Compra. \n\nSi la Entidad Compradora requiere agregar archivos que estén relacionados con las acciones a realizar como: copia del CDP y/o aprobación de Vigencia Futura (VF) que soporta la adición, soportes documentales, correos, cartas, etc... debe publicarlos junto con el documento de solicitud de modificación suscrito en un único archivo Pdf, tenga en cuenta que Colombia Compra Eficiente únicamente realizara las modificaciones especificadas en el formato enviado por el aplicativo.\n"]

{"sheet":"Listas","index":2,"n_rows":5,"n_cols":3,"rows_kept":5,"cut":false,"hidden":true,"merged":[]}
["TipoDeModificacion",null,"Modificacion"]
["Modificación de la Orden de Compra",null,"Modificación de artículo o servicio"]
["Aclaración a la Orden de Compra",null,"Agregar nuevo artículo o servicio"]
["Cancelación de la Orden de Compra",null,"Eliminar artículo o servicio"]
["Liquidación de la Orden de Compra",null,"Ninguna"]